fUST/lending_fUST_20250823
["ID","MTS","AMOUNT","RATE_DAILY","PERIOD"]
[380925065,1755901990557,-1401.20918515,0.00027259,2]
[380925066,1755901990582,-168.0,0.00027268,2]
[380925067,1755901990607,-151.0,0.00027291,2]
[380925068,1755901990632,-6441.4806605,0.00027318,2]
[380925069,1755901990657,-973.0,0.00027348,2]
[380925070,1755901990680,-422.329,0.00027348,2]
[380925071,1755901990704,-2154.0,0.00027348,2]
[380925072,1755901990728,-639.856,0.00027348,2]
[380925073,1755901990752,-168.0,0.00027396,2]
[380925074,1755901990776,-500.0,0.00027397,5]
[380925075,1755901990800,-151.0,0.000274,10]
[380925076,1755901990824,-1401.20918515,0.0002743,2]
[380925077,1755901990848,-160.0,0.00027457,2]
[380925078,1755901990871,-1574.28905902,0.00027464,2]
[380925079,1755901990896,-500.0,0.00027471,2]
[380925080,1755901990919,-581.2325412,0.00027474,30]
[380925081,1755901990943,-581.2325412,0.00027474,30]
[380925082,1755901990966,-581.2325412,0.00027474,30]
[380925083,1755901990992,-581.2325412,0.00027474,30]
[380925084,1755901991015,-581.2325412,0.00027474,30]
[380925085,1755901991039,-581.2325412,0.00027474,30]
[380925086,1755901991063,-581.2325412,0.00027474,30]
[380925087,1755901991088,-581.2325412,0.00027474,30]
[380925088,1755901991111,-581.2325412,0.00027474,30]
[380925089,1755901991134,-581.2325412,0.00027474,30]
[380925090,1755901991158,-581.2325412,0.00027474,30]
[380925091,1755901991182,-581.2325412,0.00027474,30]
[380925092,1755901991205,-577.7581287,0.00027474,30]
[380925093,1755901991228,-153.0,0.00027484,30]
[380925094,1755901991252,-153.0,0.00027492,3]
[380925095,1755901991275,-153.0,0.00027492,3]
[380925096,1755901991299,-284.0,0.00027565,2]
[380925097,1755901991322,-151.0,0.000276,10]
[380925098,1755901991346,-1401.20918515,0.000276,2]
[380925099,1755901991369,-172.94200466,0.000276,2]
[380925100,1755901991394,-1437.2886113,0.00027612,2]
[380925101,1755901991418,-1002.76678058,0.00027621,5]
[380925102,1755901991445,-1000.0,0.00027621,5]
[380925103,1755901991470,-168.0,0.00027661,2]
[380925104,1755901991493,-250.76361337,0.00027673,5]
[380925105,1755901991518,-7871.4452951,0.0002769,2]
[380925106,1755901991542,-264886.42705164,0.000277,2]
[380925107,1755901991567,-1542.47,0.000277,7]
[380925108,1755901991590,-165.82,0.000277,7]
[380925109,1755901991613,-1122.06,0.000277,7]
[380925110,1755901991639,-303.35238575,0.000277,2]
[380925111,1755901991663,-151.0,0.000277,15]
[380925112,1755901991686,-28798.94,0.000277,2]
[380925113,1755901991710,-23257.55926379,0.000277,2]
[380925114,1755901991733,-1558.215259,0.000277,2]
[380925115,1755901991874,-500.0,0.00027742,2]
[380925116,1755901991900,-500.0,0.00027745,2]
[380925117,1755901991925,-151.2187,0.00027771,2]
[380925118,1755901991950,-168.0,0.00027775,2]
[380925119,1755901991975,-168.0,0.00027777,2]
[380925120,1755901992001,-151.2187,0.00027795,2]
[380925121,1755901992025,-151.0,0.000278,10]
[380925122,1755901992051,-796.0,0.00027826,2]
[380925123,1755901992076,-168.0,0.00027883,2]
[380925124,1755901992100,-500.0,0.00027924,2]
[380925125,1755901992126,-168.0,0.00027963,2]
[380925126,1755901992149,-150.0,0.00027964,2]
[380925127,1755901992174,-150.0,0.00027976,2]
[380925128,1755901992198,-1457.01302751,0.0002799,2]
[380925129,1755901992222,-151.0,0.00028,14]
[380925130,1755901992247,-200.0,0.00028005,2]
[380925131,1755901992274,-168.0,0.00028008,2]
[380925132,1755901992299,-500.0,0.00028019,2]
[380925133,1755901992323,-151.0,0.000281,11]
[380925134,1755901992346,-500.0,0.00028122,2]
[380925135,1755901992370,-420.0,0.00028135,2]
[380925136,1755901992394,-1500.0,0.00028168,5]
[380925137,1755901992418,-151.0,0.000282,18]
[380925138,1755901992442,-151.0,0.000282,13]
[380925139,1755901992465,-8361.09412047,0.00028271,2]
[380925140,1755901992489,-151.0,0.00028292,2]
[380925141,1755901992515,-153.0,0.00028384,7]
[380925142,1755901992540,-153.0,0.00028384,7]
[380925143,1755901992563,-153.0,0.00028384,7]
[380925144,1755901992586,-153.0,0.00028384,7]
[380925145,1755901992609,-153.0,0.00028384,7]
[380925146,1755901992634,-153.0,0.00028384,7]
[380925147,1755901992658,-153.0,0.00028384,7]
[380925148,1755901992682,-153.0,0.00028384,7]
[380925149,1755901992705,-153.0,0.00028384,7]
[380925150,1755901992729,-153.0,0.00028384,7]
[380925151,1755901992752,-153.0,0.00028384,7]
[380925152,1755901992776,-153.0,0.00028384,7]
[380925153,1755901992799,-153.0,0.00028384,7]
[380925154,1755901992823,-151.78494393,0.00028384,7]
[380925155,1755901992847,-153.0,0.00028384,7]
[380925156,1755901992870,-153.0,0.00028384,7]
[380925157,1755901992896,-153.0,0.00028384,7]
[380925158,1755901992920,-153.0,0.00028384,7]
[380925159,1755901992943,-157.63025951,0.00028384,7]
[380925160,1755901992967,-232.32572668,0.00028384,7]
[380925161,1755901992993,-160.0,0.00028384,7]
[380925162,1755901993016,-500.0,0.00028386,10]
[380925163,1755901993040,-500.0,0.00028386,10]
[380925164,1755901993066,-376.07413479,0.0002839,7]
[380925165,1755901993090,-844.33851978,0.0002839,7]
[380925166,1755901993113,-160.0,0.000284,7]
[380925167,1755901993137,-417.15472785,0.000284,7]
[380925168,1755901993163,-216.99125601,0.000284,7]
[380925169,1755901993187,-646.0,0.000284,2]
[380925170,1755901993211,-322.5946,0.000284,2]
[380925171,1755901993240,-151.2187,0.00028407,20]
[380925172,1755901993265,-151.2187,0.00028409,20]
[380925173,1755901993289,-200.0,0.000285,3]
[380925174,1755901993314,-6441.4806605,0.00028515,2]
[380925175,1755901993341,-2831.17225154,0.00028533,10]
[380925176,1755901993366,-199.0,0.00028555,30]
[380925177,1755901993391,-5000.0,0.00028653,4]
[380925178,1755901993416,-797.0,0.00028665,2]
[380925179,1755901993444,-151.2187,0.00028675,5]
[380925180,1755901993468,-2000.0,0.00028716,5]
[380925181,1755901993492,-1437.2886113,0.00028823,2]
[380925182,1755901993516,-151.2187,0.00028834,5]
[380925183,1755901993541,-500.0,0.00029101,2]
[380925184,1755901993565,-500.0,0.00029106,2]
[380925185,1755901993590,-522.0,0.00029118,2]
[380925186,1755901993614,-500.0,0.00029195,2]
[380925187,1755901993640,-773.8878668,0.00029264,30]
[380925188,1755901993666,-2500.0,0.00029264,5]
[380925189,1755901993691,-28798.94,0.000295,2]
[380925190,1755901993715,-151.0,0.00029661,2]
[380925191,1755901993740,-796.0,0.00029674,7]
[380925192,1755901993763,-500.0,0.0002974,2]
[380925193,1755901993787,-512.33437478,0.00029812,5]
[380925194,1755901993810,-160.0,0.00029836,2]
[380925195,1755901993836,-160.0,0.00029836,2]
[380925196,1755901993861,-1000.0,0.0002998,5]
[380925197,1755901993885,-500.0,0.00029996,2]
[380925198,1755901993909,-200.0,0.0003,120]
[380925199,1755901993936,-4000.0,0.0003,4]
[380925200,1755901993960,-322.5946,0.0003,2]
[380925201,1755901993984,-150.0,0.0003,5]
[380925202,1755901994011,-1000.0,0.0003,5]
[380925203,1755901994610,199.0,0.00026891,10]
[380925204,1755901994890,581.2325412,0.00026652,2]
[380925205,1755901997123,792.61,0.00028357,10]
[380925206,1755902008915,-118438.1783313,0.00028371,20]
[380925207,1755902008964,-1543.08,0.00028371,2]
[380925208,1755902009014,-459463.51978012,0.00028371,20]
[380925209,1755902009063,-28006.23262207,0.00028371,2]
[380925210,1755902009087,-10000.0,0.00028371,2]
[380925211,1755902009112,-500.0,0.00028371,2]
[380925212,1755902009136,-500.0,0.00028371,2]
[380925213,1755902009161,-500.0,0.00028371,2]
[380925214,1755902009185,-500.0,0.00028371,2]
[380925215,1755902009208,-500.0,0.00028371,2]
[380925216,1755902009232,-500.0,0.00028371,2]
[380925217,1755902009256,-500.0,0.00028371,2]
[380925218,1755902009280,-500.0,0.00028371,2]
[380925219,1755902009304,-500.0,0.00028371,2]
[380925220,1755902009329,-500.0,0.00028371,2]
[380925221,1755902009353,-500.0,0.00028371,2]
[380925222,1755902009377,-500.0,0.00028371,2]
[380925223,1755902009401,-500.0,0.00028371,2]
[380925224,1755902009425,-500.0,0.00028371,2]
[380925225,1755902009449,-500.0,0.00028371,2]
[380925226,1755902050791,2453.68261804,0.000199,2]
[380925228,1755902215757,2544.91075527,0.000199,2]
[380925229,1755902371189,395.464213,0.00013699,2]
[380925230,1755902382787,2460.08039679,0.000199,2]
[380925231,1755902554082,2373.85320567,0.000199,2]
[380925232,1755902625985,1177.61,0.0002001,2]
[380925233,1755902719076,2294.72476551,0.000199,2]
[380925234,1755902883083,2218.23393979,0.000199,2]
[380925579,1755903045551,-395.464213,0.00020187,2]
[380925580,1755903045561,-666.0,0.00025152,2]
[380925582,1755903045571,-1000.0,0.0002518,2]
[380925584,1755903045580,-150.0,0.00025627,7]
[380925586,1755903045590,-150.0,0.00025727,7]
[380925588,1755903045599,-37.535787,0.00025731,2]
[380925679,1755903046466,2144.29280857,0.000199,2]
[380925686,1755903046528,-2144.29280846,0.00021627,2]
[380925688,1755903046537,-462.464213,0.00025731,2]
[380925690,1755903046549,-150.0,0.00025827,7]
[380925692,1755903046559,-500.0,0.00025888,2]
[380925694,1755903046568,-150.0,0.00025927,7]
[380925696,1755903046577,-1255.09653654,0.00026002,2]
[380925698,1755903046587,-150.0,0.00026027,7]
[380925700,1755903046596,-500.0,0.00026075,2]
[380925702,1755903046606,-151.0,0.00026075,2]
[380925704,1755903046615,-151.0,0.00026075,2]
[380925706,1755903046624,-500.0,0.00026075,2]
[380925708,1755903046633,-300.90136408,0.00026075,2]
[380925710,1755903046642,-500.0,0.00026075,2]
[380925712,1755903046651,-151.0,0.00026075,2]
[380925714,1755903046660,-500.0,0.00026075,2]
[380925716,1755903046669,-151.0,0.00026075,2]
[380925718,1755903046678,-300.0,0.00026075,2]
[380925720,1755903046687,-500.0,0.00026075,2]
[380925722,1755903046697,-217.31665274,0.00026075,2]
[380925724,1755903046706,-300.0,0.00026075,2]
[380925726,1755903046715,-500.0,0.00026075,2]
[380925728,1755903046724,-300.0,0.00026075,2]
[380925730,1755903046733,-500.0,0.00026075,2]
[380925732,1755903046742,-500.0,0.00026075,2]
[380925734,1755903046751,-500.0,0.00026075,2]
[380925736,1755903046760,-500.0,0.00026075,2]
[380925738,1755903046769,-500.0,0.00026075,2]
[380925740,1755903046778,-500.0,0.00026075,2]
[380925742,1755903046787,-250.0,0.00026075,2]
[380925744,1755903046796,-250.0,0.00026075,2]
[380925746,1755903046805,-250.0,0.00026075,2]
[380925748,1755903046814,-250.0,0.00026075,2]
[380925750,1755903046824,-6739.49759215,0.0002609,2]
[380926291,1755903376946,2001.33995464,0.000199,2]
[380926296,1755903452876,363.989167,0.00013699,2]
[380926297,1755903541130,1934.62862278,0.000199,2]
[380926298,1755903705031,1870.14100204,0.000199,2]
[380926302,1755903874279,1807.8029686,0.000199,2]
[380926306,1755904033289,1747.54286984,0.000199,2]
[380926310,1755904197016,1689.29144071,0.000199,2]
[380926339,1755904232832,-358.5587962,0.00020187,2]
[380927017,1755904246720,-5.4303708,0.00020187,2]
[380927019,1755904246730,-1689.29144063,0.00021627,2]
[380927021,1755904246739,-300.0,0.00023992,2]
[380927023,1755904246748,-177.1357324,0.00023993,2]
[380927025,1755904246760,-6448.48245613,0.00023993,2]
[380927038,1755904246870,-3551.51754387,0.00023993,2]
[380927040,1755904246879,-840.47449759,0.0002508,2]
[380928704,1755904363831,1597.48549481,0.000199,2]
[380928705,1755904401900,336.080346,0.00013699,2]
[380928707,1755904527628,1544.23597821,0.000199,2]
[380928708,1755904690806,1492.76144569,0.000199,2]
[380928709,1755904854842,1443.00273094,0.000199,2]
[380928717,1755905018891,1441.30008471,0.000199,2]
[380928719,1755905184293,1393.25674835,0.000199,2]
[380928732,1755905322152,15030.84134311,0.00019,2]
[380928733,1755905348630,1346.81485669,0.000199,2]
[380928747,1755905431919,-336.080346,0.00020187,2]
[380928748,1755905431929,-1346.81485667,0.00021627,2]
[380928749,1755905431939,-1346.81485667,0.00023353,2]
[380928751,1755905431948,-301.62,0.00023993,2]
[380928752,1755905431957,-300.0,0.00023996,2]
[380928753,1755905431967,-1200.0,0.00023996,2]
[380928754,1755905431976,-10000.0,0.00023997,2]
[380928755,1755905431985,-160.0,0.00024,2]
[380928756,1755905431994,-200.0,0.00024548,2]
[380928757,1755905432004,-227.57605934,0.00024616,2]
[380928758,1755905432014,-2563.69867681,0.00025,2]
[380928759,1755905432030,-429.82180201,0.00025,2]
[380928760,1755905432048,-1229.76705767,0.00025,2]
[380928795,1755905437969,-478.81007934,0.00025,2]
[380931129,1755905512295,1253.40251172,0.000199,2]
[380931130,1755905519874,369.005601,0.00013699,2]
[380931131,1755905565493,2000.599999,0.00028363,30]
[380931132,1755905675822,1211.62242817,0.000199,2]
[380931134,1755905840008,1171.23501383,0.000199,2]
[380931135,1755906004542,1132.19384677,0.000199,2]
[380931136,1755906167622,1094.45405181,0.000199,2]
[380931140,1755906331614,1057.97224988,0.000199,2]
[380931141,1755906467170,203.4766604,0.00019987,2]
[380931142,1755906495207,1022.70650843,0.000199,2]
[380931143,1755906530530,1813.38502629,0.00019987,2]
[380931175,1755906632242,-282.8399965,0.00020087,2]
[380931177,1755906632252,-457.66437814,0.00020087,2]
[380931179,1755906632261,-328.78737772,0.00020087,2]
[380931181,1755906632271,-369.005601,0.00020187,2]
[380931183,1755906632280,-1022.70650821,0.00021627,2]
[380931185,1755906632290,-300.0,0.00023335,2]
[380931187,1755906632299,-306.0,0.00023335,2]
[380931189,1755906632309,-10000.0,0.00023336,2]
[380931191,1755906632319,-1022.70650821,0.00023353,2]
[380931193,1755906632329,-228.927204,0.00023676,2]
[380931195,1755906632339,-1000.0,0.00024032,2]
[380931197,1755906632348,-6034.6294447,0.00024032,2]
[380931199,1755906632357,-965.0,0.00024657,2]
[380931201,1755906632366,-380.0,0.00024658,2]
[380931204,1755906632376,-151.71737289,0.000249,2]
[380931206,1755906632385,-444.56071462,0.00024973,2]
[380931208,1755906632395,-636.92576087,0.00024973,2]
[380931210,1755906632404,-500.0,0.00024973,2]
[380931212,1755906632415,-501.03677337,0.00024973,2]
[380931214,1755906632426,-500.0,0.00024973,2]
[380931216,1755906632435,-500.0,0.00024973,2]
[380931218,1755906632445,-500.0,0.00024973,2]
[380931220,1755906632454,-510.50378099,0.00024973,2]
[380931222,1755906632463,-503.10325392,0.00024973,2]
[380931224,1755906632473,-500.0,0.00024973,2]
[380931226,1755906632482,-500.0,0.00024973,2]
[380931228,1755906632491,-500.0,0.00024973,2]
[380931230,1755906632501,-585.47576303,0.00024973,2]
[380931231,1755906632510,-169.13767931,0.00024973,2]
[380931233,1755906632520,-300.0,0.00024975,2]
[380931235,1755906632529,-480.0,0.00024999,2]
[380931237,1755906632538,-480.0,0.00024999,2]
[380931239,1755906632547,-480.0,0.00024999,2]
[380931241,1755906632557,-480.0,0.00024999,2]
[380931243,1755906632566,-544.73,0.00024999,2]
[380931245,1755906632576,-482.85,0.00024999,2]
[380931248,1755906632586,-480.0,0.00024999,2]
[380931250,1755906632595,-480.0,0.00024999,2]
[380931252,1755906632604,-204.089,0.00025,8]
[380931253,1755906632613,-1437.26112795,0.00025,2]
[380931255,1755906632623,-4181.552202,0.00025,2]
[380931258,1755906632633,-5138.01815537,0.00025,7]
[380931260,1755906632643,-1771.15615259,0.00025,2]
[380931261,1755906632651,-5998.77294326,0.00025,2]
[380931263,1755906632661,-2902.04281085,0.00025,2]
[380931266,1755906632672,-1248.94746865,0.00025,2]
[380931533,1755906638216,-1437.26112795,0.00024999,2]
[380931534,1755906638226,-629.0097205,0.00025,2]
[380931535,1755906638236,-1000.0,0.00025,2]
[380931536,1755906638245,-1000.0,0.00025,2]
[380931537,1755906638254,-65.33913214,0.00025,2]
[380931581,1755906640359,-934.66086786,0.00025,2]
[380931583,1755906640368,-1000.0,0.00025,2]
[380931585,1755906640379,-1000.0,0.00025,2]
[380931587,1755906640388,-1000.0,0.00025,2]
[380931589,1755906640399,-1000.0,0.00025,2]
[380931591,1755906640408,-1000.0,0.00025,2]
[380931593,1755906640421,-1000.0,0.00025,2]
[380931595,1755906640431,-1000.0,0.00025,2]
[380931597,1755906640440,-1000.0,0.00025,2]
[380931599,1755906640450,-1000.0,0.00025,2]
[380931601,1755906640461,-1000.0,0.00025,2]
[380931603,1755906640471,-1097.99943,0.00025,2]
[380931605,1755906640481,-1500.0,0.00025,28]
[380931607,1755906640491,-1500.0,0.00025,28]
[380931609,1755906640501,-1500.0,0.00025,28]
[380931612,1755906640512,-1500.0,0.00025,28]
[380931613,1755906640521,-1500.0,0.00025,28]
[380931615,1755906640530,-1500.0,0.00025,28]
[380931617,1755906640539,-1500.0,0.00025,28]
[380931619,1755906640549,-1500.0,0.00025,28]
[380931621,1755906640558,-311.365124,0.00025,28]
[380931623,1755906640567,-1022.70650821,0.0002508,2]
[380931624,1755906640577,-160.0,0.00025142,2]
[380931625,1755906640588,-780.73,0.00025253,10]
[380931626,1755906640597,-1218.98,0.00025253,10]
[380931627,1755906640606,-16727.5404288,0.00025263,2]
[380931628,1755906640616,-480.0,0.00025273,2]
[380931629,1755906640625,-480.0,0.00025273,2]
[380931630,1755906640634,-480.0,0.00025273,2]
[380931631,1755906640643,-480.0,0.00025273,2]
[380931632,1755906640653,-544.73,0.00025273,2]
[380931633,1755906640663,-482.85,0.00025273,2]
[380931634,1755906640672,-480.0,0.00025273,2]
[380931635,1755906640681,-480.0,0.00025273,2]
[380931636,1755906640690,-1451.68774604,0.00025307,2]
[380931637,1755906640699,-420.0,0.00025322,2]
[380931638,1755906640709,-1001.86227573,0.00025521,2]
[380931639,1755906640719,-501.64242346,0.00025521,2]
[380931640,1755906640729,-565.44631833,0.00025521,2]
[380931641,1755906640738,-500.0,0.00025521,2]
[380931642,1755906640748,-500.0,0.00025521,2]
[380931643,1755906640758,-480.0,0.00025547,2]
[380931644,1755906640767,-480.0,0.00025547,2]
[380931645,1755906640777,-480.0,0.00025547,2]
[380931646,1755906640786,-222.13383254,0.00025547,2]
[380931647,1755906640796,-544.73,0.00025547,2]
[380931648,1755906640805,-482.85,0.00025547,2]
[380931649,1755906640815,-242.52920721,0.00025547,2]
[380931650,1755906640825,-442.46688459,0.00025547,2]
[380931651,1755906640835,-157.22,0.00025622,7]
[380931652,1755906640845,-500.0,0.00025623,2]
[380931653,1755906640854,-256.60106979,0.00025623,7]
[380931655,1755906640864,-442.0,0.00025651,7]
[380931656,1755906640873,-442.0,0.00025662,2]
[380931658,1755906640883,-260.0,0.0002569,2]
[380931660,1755906640892,-300.58746429,0.00025718,2]
[380931662,1755906640902,-157.22,0.00025722,7]
[380931664,1755906640911,-500.0,0.00025737,2]
[380931666,1755906640920,-500.0,0.00025795,2]
[380931668,1755906640930,-442.0,0.00025816,2]
[380931670,1755906640940,-480.0,0.00025821,2]
[380931672,1755906640950,-480.0,0.00025821,2]
[380931674,1755906640959,-480.0,0.00025821,2]
[380931676,1755906640969,-544.73,0.00025821,2]
[380931678,1755906640979,-482.85,0.00025821,2]
[380931680,1755906640990,-157.22,0.00025822,7]
[380931682,1755906641000,-168.0,0.00025839,2]
[380931684,1755906641010,-500.0,0.00025897,2]
[380931686,1755906641019,-442.0,0.000259,2]
[380931688,1755906641029,-157.25007934,0.00025922,7]
[380931690,1755906641039,-1658.183106,0.00026,30]
[380931692,1755906641048,-160.0,0.00026024,2]
[380931694,1755906641057,-376.07413479,0.00026027,2]
[380931696,1755906641067,-215.90555669,0.00026027,2]
[380931698,1755906641076,-168.0,0.00026027,2]
[380931700,1755906641086,-480.0,0.00026053,2]
[380931702,1755906641095,-480.0,0.00026053,2]
[380931704,1755906641104,-480.0,0.00026053,2]
[380931706,1755906641113,-480.0,0.00026053,2]
[380931708,1755906641122,-642.02,0.00026053,2]
[380931710,1755906641132,-480.0,0.00026053,2]
[380931711,1755906641142,-616.67,0.00026053,2]
[380931713,1755906641151,-480.0,0.00026053,2]
[380931715,1755906641162,-480.0,0.00026053,2]
[380931717,1755906641171,-480.0,0.00026053,2]
[380931719,1755906641180,-480.0,0.00026053,2]
[380931721,1755906641189,-168.0,0.00026066,2]
[380931723,1755906641200,-8439.54454066,0.00026068,2]
[380931726,1755906641215,-5820.770844,0.00026068,2]
[380932816,1755906677524,958.71257348,0.000199,2]
[380932818,1755906843378,928.02764538,0.000199,2]
[380932819,1755906849767,348.048931,0.00013699,2]
[380932821,1755907008884,897.00509934,0.000199,2]
[380932822,1755907172559,880.12486909,0.000199,2]
[380932823,1755907309626,95396.79,0.00028368,30]
[380932824,1755907356171,853.16431849,0.000199,2]
[380932825,1755907523617,824.72550798,0.000199,2]
[380932826,1755907528505,161.09880639,0.00019,2]
[380932827,1755907686639,797.23465754,0.000199,2]
[380932889,1755907832819,-348.048931,0.00020187,2]
[380932891,1755907832829,-7406.15566351,0.00021527,2]
[380932894,1755907832841,-797.23465751,0.00021627,2]
[380932896,1755907832853,-266.7393666,0.000219,2]
[380932898,1755907832863,-163.0,0.00022,2]
[380932900,1755907832872,-163.0,0.00022192,7]
[380932901,1755907832883,-244.69570441,0.00022193,2]
[380932903,1755907832892,-163.0,0.00023014,7]
[380932906,1755907832902,-797.23465751,0.00023353,2]
[380932908,1755907832911,-300.0,0.00023528,2]
[380932909,1755907832921,-300.0,0.00023528,2]
[380932912,1755907832932,-300.0,0.00023528,2]
[380932913,1755907832943,-300.0,0.00023528,2]
[380932916,1755907832952,-2427.51876074,0.00023529,2]
[380932917,1755907832963,-502.11282483,0.00023529,2]
[380932918,1755907832975,-417.88717517,0.00023529,2]
[380932921,1755907832998,-6132.36855286,0.00023529,2]
[380932923,1755907833008,-1200.0,0.00023862,2]
[380932924,1755907833018,-5000.0,0.00023863,2]
[380932925,1755907833027,-583.61056563,0.00023863,2]
[380932927,1755907833038,-977.0,0.00023989,2]
[380932929,1755907833048,-1097.196196,0.0002399,2]
[380932931,1755907833058,-1000.0,0.00024467,2]
[380932933,1755907833068,-666.0,0.00024513,2]
[380932935,1755907833079,-195.19518056,0.0002453,2]
[380932936,1755907833090,-183.141763,0.0002476,2]
[380932937,1755907833100,-179.8240804,0.00024968,2]
[380932938,1755907833110,-179.8240804,0.00024968,2]
[380932939,1755907833121,-797.23465751,0.0002508,2]
[380932940,1755907833131,-199.0,0.00025153,10]
[380932941,1755907833142,-725.84387302,0.00025285,2]
[380932942,1755907833153,-500.0,0.00025447,2]
[380932943,1755907833163,-420.0,0.00025527,2]
[380932944,1755907833173,-500.0,0.00025554,2]
[380932945,1755907833183,-800.0,0.00025778,2]
[380932946,1755907833195,-204.76258266,0.00025821,2]
[380932947,1755907833205,-385.6742749,0.00025821,2]
[380932948,1755907833216,-215.90555669,0.00025901,2]
[380932949,1755907833226,-160.0,0.00025901,2]
[380932950,1755907833236,-376.07413479,0.00025906,2]
[380932951,1755907833247,-12692.97277622,0.00025909,2]
[380932952,1755907833260,-800.0,0.00025937,2]
[380932953,1755907833271,-800.0,0.00025974,2]
[380932954,1755907833281,-671.0,0.00026,2]
[380932955,1755907833290,-178.73291862,0.00026018,2]
[380932956,1755907833300,-178.73291861,0.00026023,2]
[380932957,1755907833309,-178.73291861,0.00026027,2]
[380932959,1755907833318,-5625.6257971,0.00026027,2]
[380932960,1755907833328,-531.16,0.000261,10]
[380932961,1755907833338,-927.29,0.000261,10]
[380932962,1755907833348,-772.75,0.000261,10]
[380932963,1755907833357,-13400.74506252,0.00026109,2]
[380932977,1755907833574,-62489.99312798,0.00026109,2]
[380932979,1755907833585,-137510.00687202,0.00026119,2]
[380932981,1755907833598,-1359.87872435,0.00026119,2]
[380932984,1755907833610,-1032.61708873,0.00026119,2]
[380933121,1755907840639,-169.0,0.00024164,7]
[380933123,1755907840650,-199.0,0.00026,10]
[380933125,1755907840660,-500.0,0.00026118,2]
[380933127,1755907840670,-348.15129209,0.00026118,2]
[380933129,1755907840680,-500.0,0.00026118,2]
[380933131,1755907840690,-500.0,0.00026118,2]
[380933133,1755907840699,-59.15870791,0.00026118,2]
[380933418,1755907843791,-246.63545472,0.00026118,2]
[380933420,1755907843801,-187.46454528,0.00026118,2]
[380933422,1755907843812,-312.53545472,0.00026118,2]
[380933424,1755907843822,-187.85310703,0.00026118,2]
[380933719,1755907846861,-312.14689297,0.00026118,2]
[380933721,1755907846871,-500.0,0.00026118,2]
[380933723,1755907846882,-500.0,0.00026118,2]
[380933725,1755907846892,-500.0,0.00026118,2]
[380933727,1755907846902,-500.0,0.00026118,2]
[380933729,1755907846912,-38846.82857514,0.00026119,2]
[380933731,1755907846927,-935.5364121,0.00026119,2]
[380933735,1755907846970,-19991.58950788,0.00026119,2]
[380933987,1755907850011,758.55343392,0.000199,2]
[380934666,1755908021491,707.98320514,0.000199,2]
[380934672,1755908186870,709.66887942,0.000199,2]
[380934673,1755908353699,685.96391632,0.000199,2]
[380934674,1755908355208,338.06323,0.00013699,2]
[380934690,1755908519914,664.33084721,0.000199,2]
[380934694,1755908678452,1164.96,0.00016384,10]
[380934695,1755908679330,1164.96,0.00016384,10]
[380934697,1755908684022,642.18648582,0.000199,2]
[380934729,1755908848392,620.78026951,0.000199,2]
[380934738,1755908879431,1000.0,0.0002,2]
[380934742,1755908892532,737.8,0.00016384,2]
[380934743,1755908893749,737.8,0.00016384,2]
[380934744,1755908894415,737.81,0.00016384,2]
[380934745,1755908897593,1000.0,0.0002,10]
[380934755,1755908970435,513.4,0.0002,10]
[380934767,1755909012771,600.08759385,0.000199,2]